Workbook

Sheet VTPR Fitting- 2-propanol
F1: VT PR EoS fitting for pure substances - v0.2
D2: The worksheet can be modifed for other substances by replacing the properties and data in the yellow fields
E3: Report problems to: smith@scf.che.tohoku.ac.jp | M3: With Excel Solver, both F(w) and the volume translation "c" can be fit. The objective function can be the deviation of the vapor pressures and the deviations of the liquid densities.
D4: Substance Name | E4: Structure | F4: MW | G4: Tb [K] | H4: Tc [K] | I4: Pc [MPa] | J4: Vc [cm3/mol] | K4: Acentric factor | L4: Zc
C5: 1 | D5: 2-propanol | E5: CH3CHOHCH3 | F5: 60.057514 | G5: 355.41 | H5: 508.31 | I5: 4.764 | J5: 220.1 | K5: 0.669 | L5: 0.248
G6: Tc [C]: | H6: =H5-273.15 -> 235.16 | O6: F(w) = (1 + (0.37464 + 1.54226 * w - 0.26992 * w ^ 2) * (1 - (T / Tc) ^ 0.5)) ^ 2
L7: F(w) correlation: | M7: =0.37464 + 1.54226 * $K$5 - 0.26992 * $K$5 ^ 2 -> 1.285606275
E8: Psat [Pa] | F8: VL [m3/mol] | G8: VV [m3/mol] | H8: fL [Pa] | I8: fV [Pa] | L8: F(w) fitted: | M8: 1.221729651 | N8: Values in Magenta can be used in the fitting procedure with the Objective Function below. | U8: Input Field | AH8: Note that a vector function can almost be used like a usual Excel function in that it can be dragged and extended.
E9: =PSatVlVvfLfVPREOS_TcinK_PcinPa_w_TinC_alpha($H$5,$I$5*1000000,$K$5,C17-273.15,Q17) -> 2000.343129 | F9: 7.828978531e-05 | G9: 1.141734234 | H9: 1998.167042 | I9: 1998.167042 | L9: Volume translation c [m3/mol]: | M9: =M12 -> 5.871361994e-06 | N9: Value used | U9: Calculation Field | AH9: HOWEVER, it returns a VECTOR of values. If you click on it, you can see the arguments that it uses.
L10: Volume translation c [m3/mol]: | M10: =-0.252*(8.314*$H$5/($I$5*1000000))*(1.5448*$L$5-0.4024) -> 4.312118467e-06 | N10: Gmehling function | U10: Solver Field | AH10: HOWEVER, if you click on it, you must press CONTROL-SHIFT-ENTER key at the same time INSTEAD of just enter.
L11: Volume translation c [m3/mol]: | M11: =$AI$20-1/$O$20*$F$5/1000 -> 3.748288518e-06 | N11: Tr = 0.7 | O11: T at Tr=0.7 [C]: | P11: =0.7*$H$5-273.15 -> 82.667 | U11: Vector function | AH11: You can change the arguments that it uses, but then you must press CONTROL-SHIFT-ENTER. See the text for some advice.
L12: Volume translation c fitted [m3/mol] | M12: 5.871361994e-06 | U12: Note Field | AI12: Vector-Function:
C13: Saturation data from the literature used in the fitting procedure: | U13: Optional/Disregard | AH13: PSatVlVvfLfVPREOS_TcinK_PcinPa_w_TinC_alpha(arg1, arg2, arg3, arg4, arg5)
C14: D. Ambrose, J.F. Counsell, I.J. Lawrenson, G.B. Lewis, Thermodynamic Properties of Organic Oxygen Compounds .47. Pressure, Volume, Temperature Relations and Thermodynamic Properties of Propan-2-ol, Journal of Chemical Thermodynamics 10 (1978) 1033-1043. | AN14: VL | AO14: VL | AP14: rhoL | AQ14: rhoL | AT14: Psat | AW14: rhoL | AX14: rhoL | BA14: rhoV | BB14: rhoL
Y15: VT PR EoS | AD15: dP | AE15: drhoL | AF15: drhoV | AN15: PR EoS | AO15: VTPR EoS | AP15: PR EoS | AQ15: VTPR EoS | AT15: VTPR EoS | AW15: PR EoS | AX15: VTPR EoS | BA15: VTPR EoS | BB15: VTPR EoS
B16: No. | C16: T [K] | D16: Psat [kPa] | E16: rhoL [kg/m3] | F16: Vg [m3/mol] | G16: VL [m3/mol] | H16: HL [kJ/mol] | I16: Hg [kJ/mol] | J16: SL [kJ/mol K] | K16: Sg [kJ/mol K] | L16: Tr [-] | M16: T [C] | N16: Psat [MPa] | O16: rhoL [kg/m3] | P16: rhoG [kg/m3] | Q16: FITalpha | R16: PRalpha | S16: Psat [MPa] | T16: rhoL [kg/m3] | U16: rhoG [kg/m3] | V16: dP | W16: drhoL | X16: drhoV | Y16: VL [m3/mol] | Z16: VV [m3/mol] | AA16: rhoL [kg/m3] | AB16: rhoG [kg/m3] | AC16: No. | AD16: [MPa] | AE16: [kg/m3] | AF16: [kg/m3] | AG16: No. | AH16: Psat [Pa] | AI16: VL [m3/mol] | AJ16: VV [m3/mol] | AK16: fL [Pa] | AL16: fV [Pa] | AM16: No. | AN16: % Deviation | AO16: % Deviation | AP16: % Deviation | AQ16: % Deviation | AS16: No. | AT16: % Deviation | AV16: No. | AW16: % Deviation | AX16: % Deviation | AZ16: No. | BA16: % Deviation | BB16: % Deviation
B17: 1 | C17: 275 | D17: 1.186 | E17: 798.8 | F17: 1.9273 | G17: =1/E17*$F$5/1000 -> 7.51846695e-05 | H17: 25.153 | I17: 71.815 | J17: 0.16912 | K17: 0.33915 | L17: =(M17+273.15)/$H$5 -> 0.5410084397 | M17: =C17-273.15 -> 1.85 | N17: =D17/1000 -> 0.001186 | O17: =E17 -> 798.8 | P17: =1/F17*$F$5/1000 -> 0.03116147668 | Q17: =(1+$M$8*(1-((M17+273.15)/$H$5)^0.5))^2 -> 1.750613377 | R17: =(1+(0.37464 + 1.54226 * $K$5 - 0.26992 * $K$5 ^ 2)*(1-((M17+273.15)/$H$5)^0.5))^2 -> 1.795601995 | S17: =AH17/1000000 -> 0.002000343129 | T17: =1/AI17*$F$5/1000 -> 767.1181337 | U17: =1/AJ17*$F$5/1000 -> 0.0526020086 | V17: =S17-N17 -> 0.0008143431292 | W17: =T17-O17 -> -31.68186627 | X17: =U17-P17 -> 0.02144053192 | Y17: =AI17-$M$9 -> 7.241842332e-05 | Z17: =AJ17-$M$9 -> 1.141728363 | AA17: =1/Y17*$F$5/1000 -> 829.3126424 | AB17: =1/Z17*$F$5/1000 -> 0.0526022791 | AC17: 1 | AD17: =S17-N17 -> 0.0008143431292 | AE17: =AA17-O17 -> 30.51264238 | AF17: =AB17-P17 -> 0.02144080243 | AG17: 1 | AH17: =PSatVlVvfLfVPREOS_TcinK_PcinPa_w_TinC_alpha($H$5,$I$5*1000000,$K$5,M17,Q17) -> 2000.343129 | AI17: 7.828978531e-05 | AJ17: 1.141734234 | AK17: 1998.167042 | AL17: 1998.167042 | AM17: 1 | AN17: =(AI17-G17)/G17*100 -> 4.129985315 | AO17: =(Y17-G17)/G17*100 -> -3.67926893 | AP17: =(T17-E17)/E17*100 -> -3.966182557 | AQ17: =(AA17-E17)/E17*100 -> 3.819810013 | AS17: 1 | AT17: =(S17-N17)/N17*100 -> 68.66299571 | AV17: 1 | AW17: -3.966044479 | AX17: 1.401329887 | AZ17: 1 | BA17: =(AB17-P17)/P17*100 -> 68.80547622 | BB17: 1.401329887
B18: 2 | C18: 300 | D18: 6.481 | E18: 779.55 | F18: 0.38355 | G18: =1/E18*$F$5/1000 -> 7.70412597e-05 | H18: 28.853 | I18: 73.973 | J18: 0.18198 | K18: 0.33257 | L18: =(M18+273.15)/$H$5 -> 0.5901910252 | M18: 26.85 | N18: 0.006481 | O18: 779.55 | P18: 0.1565832721 | Q18: =(1+$M$8*(1-((M18+273.15)/$H$5)^0.5))^2 -> 1.646472367 | R18: =(1+(0.37464 + 1.54226 * $K$5 - 0.26992 * $K$5 ^ 2)*(1-((M18+273.15)/$H$5)^0.5))^2 -> 1.684683313 | S18: 0.009469783392 | T18: =1/AI18*$F$5/1000 -> 747.921879 | U18: 0.2289484991 | V18: =S18-N18 -> 0.002988783392 | W18: =T18-O18 -> -31.62812105 | X18: =U18-P18 -> 0.07236522703 | Y18: =AI18-$M$9 -> 7.442781856e-05 | Z18: 0.2623130093 | AA18: =1/Y18*$F$5/1000 -> 806.9229377 | AB18: =1/Z18*$F$5/1000 -> 0.2289536237 | AC18: 2 | AD18: 0.002988783392 | AE18: 27.37293769 | AF18: 0.07237035159 | AG18: 2 | AH18: =PSatVlVvfLfVPREOS_TcinK_PcinPa_w_TinC_alpha($H$5,$I$5*1000000,$K$5,M18,Q18) -> 9469.783392 | AI18: 8.029918056e-05 | AJ18: 0.2623188806 | AK18: 9431.591774 | AL18: 9431.591774 | AM18: 2 | AN18: 4.228800084 | AO18: -3.392261691 | AP18: -4.057228022 | AQ18: 3.511376781 | AS18: 2 | AT18: =(S18-N18)/N18*100 -> 46.11608382 | AV18: 2 | AW18: -4.057072467 | AX18: 1.163728447 | AZ18: 2 | BA18: =(AB18-P18)/P18*100 -> 46.21844379 | BB18: 1.163728447
B19: 3 | C19: 325 | D19: 25.931 | E19: 757.02 | F19: 0.10284 | G19: 7.933411799e-05 | H19: 33.046 | I19: 76.172 | J19: 0.1954 | K19: 0.32817 | L19: 0.6393736106 | M19: 51.85 | N19: 0.025931 | O19: 757.02 | P19: 0.5839898289 | Q19: 1.549587653 | R19: 1.581619847 | S19: 0.033531025 | T19: 725.7375172 | U19: 0.7539160706 | V19: 0.007600025001 | W19: -31.28248281 | X19: 0.1699262417 | Y19: 7.688240583e-05 | Z19: 0.07965487119 | AA19: 781.1607006 | AB19: 0.7539716417 | AC19: 3 | AD19: 0.007600025001 | AE19: 24.14070056 | AF19: 0.1699818129 | AG19: 3 | AH19: =PSatVlVvfLfVPREOS_TcinK_PcinPa_w_TinC_alpha($H$5,$I$5*1000000,$K$5,M19,Q19) -> 33531.025 | AI19: 8.275376783e-05 | AJ19: 0.07966074255 | AK19: 33151.04553 | AL19: 33151.04553 | AM19: 3 | AN19: 4.310440355 | AO19: -3.09036291 | AP19: -4.132319201 | AQ19: 3.188911859 | AS19: 3 | AT19: 29.30864603 | AV19: 3 | AW19: -4.13214511 | AX19: 0.9216798674 | AZ19: 3 | BA19: 29.10698174 | BB19: 0.9216798674
B20: 4 | C20: 350 | D20: 81.349 | E20: 731.84 | F20: 0.03449 | G20: 8.206372158e-05 | H20: 37.752 | I20: 78.252 | J20: 0.20932 | K20: 0.32503 | L20: 0.688556196 | M20: 76.85 | N20: 0.081349 | O20: 731.84 | P20: 1.741302233 | Q20: 1.45913621 | R20: 1.485520639 | S20: 0.09523114265 | T20: 699.8730589 | U20: 2.018846788 | V20: 0.01388214265 | W20: -31.96694106 | X20: 0.2775445559 | Y20: 7.99406481e-05 | Z20: 0.02974255449 | AA20: 751.2762959 | AB20: 2.019245321 | AC20: 4 | AD20: 0.01388214265 | AE20: 19.43629592 | AF20: 0.2779430886 | AG20: 4 | AH20: =PSatVlVvfLfVPREOS_TcinK_PcinPa_w_TinC_alpha($H$5,$I$5*1000000,$K$5,M20,Q20) -> 95231.14265 | AI20: 8.58120101e-05 | AJ20: 0.02974842586 | AK20: 92773.25686 | AL20: 92773.25686 | AM20: 4 | AN20: 4.567534162 | AO20: -2.587103577 | AP20: -4.36802321 | AQ20: 2.655812189 | AS20: 4 | AT20: 17.06492108 | AV20: 4 | AW20: -4.367830183 | AX20: 0.4847846581 | AZ20: 4 | BA20: 15.96179476 | BB20: 0.4847846581
B21: 5 | C21: 375 | D21: 210.416 | E21: 702.89 | F21: 0.013684 | G21: 8.54436882e-05 | H21: 42.92 | I21: 80.007 | J21: 0.22355 | K21: 0.32241 | L21: 0.7377387815 | M21: 101.85 | N21: 0.210416 | O21: 702.89 | P21: 4.388885852 | Q21: 1.374439745 | R21: 1.395651414 | S21: 0.2283894437 | T21: 669.3703704 | U21: 4.64296868 | V21: 0.01797344369 | W21: -33.51962956 | X21: 0.2540828284 | Y21: 8.385103483e-05 | Z21: 0.01292928244 | AA21: 716.2405821 | AB21: 4.645077115 | AC21: 5 | AD21: 0.01797344369 | AE21: 13.35058214 | AF21: 0.2561912632 | AG21: 5 | AH21: =PSatVlVvfLfVPREOS_TcinK_PcinPa_w_TinC_alpha($H$5,$I$5*1000000,$K$5,M21,Q21) -> 228389.4437 | AI21: 8.972239683e-05 | AJ21: 0.01293515381 | AK21: 216960.6316 | AL21: 216960.6316 | AM21: 5 | AN21: 5.007635688 | AO21: -1.86398013 | AP21: -4.768830053 | AQ21: 1.899384276 | AS21: 5 | AT21: 8.541861687 | AV21: 5 | AW21: -4.768618157 | AX21: -0.1571436605 | AZ21: 5 | BA21: 5.837273328 | BB21: -0.1571436605
B22: 6 | C22: 400 | D22: 466.18 | E22: 669.36 | F22: 0.0061881 | G22: 8.97237869e-05 | H22: 48.497 | I22: 81.443 | J22: 0.23789 | K22: 0.32019 | L22: 0.7869213669 | M22: 126.85 | N22: 0.46618 | O22: 669.36 | P22: 9.705323767 | Q22: 1.294931392 | R22: 1.311398514 | S22: 0.4806317861 | T22: 632.8465834 | U22: 9.56932284 | V22: 0.01445178613 | W22: -36.51341655 | X22: -0.1360009267 | Y22: 8.902922777e-05 | Z22: 0.006270175021 | AA22: 674.5819941 | AB22: 9.578283508 | AC22: 6 | AD22: 0.01445178613 | AE22: 5.221994072 | AF22: -0.1270402585 | AG22: 6 | AH22: =PSatVlVvfLfVPREOS_TcinK_PcinPa_w_TinC_alpha($H$5,$I$5*1000000,$K$5,M22,Q22) -> 480631.7861 | AI22: 9.490058976e-05 | AJ22: 0.006276046383 | AK22: 439468.063 | AL22: 439468.063 | AM22: 6 | AN22: 5.769710623 | AO22: -0.7741081318 | AP22: -5.454974386 | AQ22: 0.7801473156 | AS22: 6 | AT22: 3.100044217 | AV22: 6 | AW22: -5.454744879 | AX22: -1.137710354 | AZ22: 6 | BA22: -1.308974966 | BB22: -1.137710354
B23: 7 | C23: 425 | D23: 911.89 | E23: 630 | F23: 0.0031148 | G23: 9.53293873e-05 | H23: 54.457 | I23: 82.993 | J23: 0.25223 | K23: 0.31928 | L23: 0.8361039523 | M23: 151.85 | N23: 0.91189 | O23: 630 | P23: 19.28133877 | Q23: 1.220131651 | R23: 1.232242866 | S23: 0.9135665708 | T23: 588.1751735 | U23: 18.30478504 | V23: 0.001676570762 | W23: -41.82482652 | X23: -0.9765537284 | Y23: 9.623684778e-05 | Z23: 0.003275102103 | AA23: 624.0594469 | AB23: 18.33760051 | AC23: 7 | AD23: 0.001676570762 | AE23: -5.940553092 | AF23: -0.943738257 | AG23: 7 | AH23: =PSatVlVvfLfVPREOS_TcinK_PcinPa_w_TinC_alpha($H$5,$I$5*1000000,$K$5,M23,Q23) -> 913566.5708 | AI23: 0.0001021082098 | AJ23: 0.003280973465 | AK23: 792107.9101 | AL23: 792107.9101 | AM23: 7 | AN23: 7.110947283 | AO23: 0.9519210263 | AP23: -6.638861352 | AQ23: -0.9429449352 | AS23: 7 | AT23: 0.183856689 | AV23: 7 | AW23: -6.638617916 | AX23: -2.689284017 | AZ23: 7 | BA23: -4.894568102 | BB23: -2.689284017
B24: 8 | C24: 450 | D24: 1615.77 | E24: 581.99 | F24: 0.0016833 | G24: 0.0001031933779 | H24: 60.782 | I24: 85.019 | J24: 0.26652 | K24: 0.32025 | L24: 0.8852865377 | M24: 176.85 | N24: 1.61577 | O24: 581.99 | P24: 35.67843759 | Q24: 1.149630627 | R24: 1.157740742 | S24: 1.603192698 | T24: 531.7271559 | U24: 33.58238657 | V24: -0.0125773018 | W24: -50.26284414 | X24: -2.09605102 | Y24: 0.000107076629 | Z24: 0.001782492126 | AA24: 560.883496 | AB24: 33.69300381 | AC24: 8 | AD24: -0.0125773018 | AE24: -21.10650401 | AF24: -1.985433786 | AG24: 8 | AH24: =PSatVlVvfLfVPREOS_TcinK_PcinPa_w_TinC_alpha($H$5,$I$5*1000000,$K$5,M24,Q24) -> 1603192.698 | AI24: 0.000112947991 | AJ24: 0.001788363488 | AK24: 1296898.851 | AL24: 1296898.851 | AM24: 8 | AN24: 9.452751019 | AO24: 3.763081668 | AP24: -8.636375907 | AQ24: -3.626609394 | AS24: 8 | AT24: -0.778409167 | AV24: 8 | AW24: -8.63612714 | AX24: -5.156331576 | AZ24: 8 | BA24: -5.564800255 | BB24: -5.156331576
B25: 9 | C25: 475 | D25: 2654.77 | E25: 519.76 | F25: 0.000908 | G25: 0.0001155485493 | H25: 67.404 | I25: 86.683 | J25: 0.2806 | K25: 0.32108 | L25: 0.9344691232 | M25: 201.85 | N25: 2.65477 | O25: 519.76 | P25: 66.14263656 | Q25: 1.083074654 | R25: 1.087509284 | S25: 2.641583909 | T25: 455.9623125 | U25: 61.63793982 | V25: -0.01318609095 | W25: -63.79768754 | X25: -4.504696744 | Y25: 0.0001258445986 | Z25: 0.0009684881668 | AA25: 477.2355321 | AB25: 62.01161362 | AC25: 9 | AD25: -0.01318609095 | AE25: -42.52446786 | AF25: -4.13102294 | AG25: 9 | AH25: =PSatVlVvfLfVPREOS_TcinK_PcinPa_w_TinC_alpha($H$5,$I$5*1000000,$K$5,M25,Q25) -> 2641583.909 | AI25: 0.0001317159606 | AJ25: 0.0009743595288 | AK25: 1959708.855 | AL25: 1959708.855 | AM25: 9 | AN25: 13.99187735 | AO25: 8.91058293 | AP25: -12.2744512 | AQ25: -8.181558385 | AS25: 9 | AT25: -0.496694288 | AV25: 9 | AW25: -12.27421801 | AX25: -9.42453849 | AZ25: 9 | BA25: -6.245627865 | BB25: -9.42453849
B26: 10 | C26: 500 | D26: 4139.39 | E26: 425.22 | F26: 0.0004258 | G26: 0.0001412386859 | H26: 74.622 | I26: 85.397 | J26: 0.29502 | K26: 0.31653 | L26: 0.9836517086 | M26: 226.85 | N26: 4.13939 | O26: 425.22 | P26: 141.0462987 | Q26: 1.020156054 | R26: 1.021215421 | S26: 4.140891243 | T26: 334.0871439 | U26: 127.3463711 | V26: 0.001501242603 | W26: -91.1328561 | X26: -13.69992761 | Y26: 0.0001738946514 | Z26: 0.0004657362187 | AA26: =1/Y26*$F$5/1000 -> 345.3672295 | AB26: 128.9517791 | AC26: 10 | AD26: 0.001501242603 | AE26: -79.85277047 | AF26: -12.09451962 | AG26: 10 | AH26: =PSatVlVvfLfVPREOS_TcinK_PcinPa_w_TinC_alpha($H$5,$I$5*1000000,$K$5,M26,Q26) -> 4140891.243 | AI26: 0.0001797660134 | AJ26: 0.0004716075807 | AK26: 2766742.099 | AL26: 2766742.099 | AM26: 10 | AN26: 27.27816912 | AO26: 23.12111968 | AP26: -21.43193079 | AQ26: -18.77916619 | AS26: 10 | AT26: 0.03626724236 | AV26: 10 | AW26: -21.43178275 | AX26: -19.57786027 | AZ26: 10 | BA26: -8.574857854 | BB26: -19.57786027
B27: CP | C27: 508.3 | D27: 4761.6 | E27: 273.17 | F27: 0.000223 | G27: 0.0002198539884 | H27: 80.686 | I27: 80.686 | J27: 0.30681 | K27: 0.30681 | U27: sum of squares | V27: =SUMSQ(V17:V26) -> 0.00112909518 | W27: =SUMSQ(W17:W26) -> 23112.36491 | X27: =SUMSQ(X17:X26) -> 213.5220529 | AC27: SSQ: | AD27: =SUMSQ(AD17:AD26) -> 0.00112909518 | AE27: =SUMSQ(AE17:AE24) -> 3327.124034 | AF27: =SUMSQ(AF17:AF22) -> 0.1936165436
AC28: OBJ. F.: | AD28: =SUM(AD27) -> 0.00112909518 | AE28: =SUM(AE27) -> 3327.124034 | AF28: =SUM(AF27) -> 0.1936165436
J29: Note that a vector function can almost be used like a usual Excel function in that it can be dragged and extended. | T29: std dev | U29: =_xlfn.STDEV.S(S17:S26) -> 1.39539128 | V29: =_xlfn.STDEV.S(T17:T26) -> 139.6054702 | W29: =_xlfn.STDEV.S(U17:U26) -> 40.73420198
D30: Input Field | J30: HOWEVER, it returns a VECTOR of values. If you click on it, you can see the arguments that it uses. | T30: sum dX^2/std dev | U30: =V27/U29 -> 0.0008091602664 | V30: =W27/V29 -> 165.5548659 | W30: =X27/W29 -> 5.241837143
D31: Calculation Field | J31: HOWEVER, if you click on it, you must press CONTROL-SHIFT-ENTER key at the same time INSTEAD of just enter. | T31: Objective Function: | U31: =SUM(U30) -> 0.0008091602664
D32: Solver Field | J32: You can change the arguments that it uses, but then you must press CONTROL-SHIFT-ENTER. See the text for some advice.
D33: Vector function
D34: Note Field | N34: Table for drawing the curves in the plots to the right. | X34: VT PR EoS
D35: Optional/Disregard | M35: T [C] | N35: FITalpha | O35: Psat [Pa] | P35: VL [m3/mol] | Q35: VV [m3/mol] | R35: fL [Pa] | S35: fV [Pa] | T35: Psat [MPa] | U35: rhoL [kg/m3] | V35: rhoG [kg/m3] | W35: VL [m3/mol] | X35: VV [m3/mol] | Y35: rhoL [kg/m3] | Z35: rhoG [kg/m3]
M36: 0 | N36: =(1+$M$8*(1-((M36+273.15)/$H$5)^0.5))^2 -> 1.758634592 | O36: =PSatVlVvfLfVPREOS_TcinK_PcinPa_w_TinC_alpha($H$5,$I$5*1000000,$K$5,M36,N36) -> 1758.170005 | P36: 7.8155627e-05 | Q36: 1.290406883 | R36: 1756.457184 | S36: 1756.457184 | T36: =O36/1000000 -> 0.001758170005 | U36: =1/P36*$F$5/1000 -> 768.434933 | V36: =1/Q36*$F$5/1000 -> 0.04654153259 | W36: =P36-$M$9 -> 7.228426501e-05 | X36: =Q36-$M$9 -> 1.290401012 | Y36: =1/W36*$F$5/1000 -> 830.8518319 | Z36: =1/X36*$F$5/1000 -> 0.04654174435
M37: 1 | N37: =(1+$M$8*(1-((M37+273.15)/$H$5)^0.5))^2 -> 1.754293162 | O37: =PSatVlVvfLfVPREOS_TcinK_PcinPa_w_TinC_alpha($H$5,$I$5*1000000,$K$5,M37,N37) -> 1885.686277 | P37: 7.822791813e-05 | Q37: 1.207477232 | R37: 1883.735833 | S37: 1883.735833 | T37: =O37/1000000 -> 0.001885686277 | U37: =1/P37*$F$5/1000 -> 767.7248153 | V37: =1/Q37*$F$5/1000 -> 0.04973800948 | W37: 7.235655614e-05 | X37: 1.20747136 | Y37: =1/W37*$F$5/1000 -> 830.0217313 | Z37: =1/X37*$F$5/1000 -> 0.04973825133
M38: 2 | N38: 1.749964994 | O38: =PSatVlVvfLfVPREOS_TcinK_PcinPa_w_TinC_alpha($H$5,$I$5*1000000,$K$5,M38,N38) -> 2021.195153 | P38: 7.830074346e-05 | Q38: 1.13056069 | R38: 2018.976819 | S38: 2018.976819 | T38: 0.002021195153 | U38: 767.010776 | V38: 0.05312188416 | W38: 7.242938147e-05 | X38: 1.130554819 | Y38: 829.1871722 | Z38: 0.05312216004
M39: 4 | N39: 1.741348154 | O39: =PSatVlVvfLfVPREOS_TcinK_PcinPa_w_TinC_alpha($H$5,$I$5*1000000,$K$5,M39,N39) -> 2317.870954 | P39: 7.844801729e-05 | Q39: 0.992885028 | R39: 2315.011687 | S39: 2315.011687 | T39: 0.002317870954 | U39: 765.5708337 | V39: 0.0604878836 | W39: 7.25766553e-05 | X39: 0.9928791566 | Y39: 827.5045709 | Z39: 0.06048824129
M40: 6 | N40: 1.732783501 | O40: =PSatVlVvfLfVPREOS_TcinK_PcinPa_w_TinC_alpha($H$5,$I$5*1000000,$K$5,M40,N40) -> 2651.726984 | P40: 7.859749333e-05 | Q40: 0.8740109775 | R40: 2648.058856 | S40: 2648.058856 | T40: 0.002651726984 | U40: 764.1148777 | V40: 0.06871482801 | W40: 7.272613134e-05 | X40: 0.8740051062 | Y40: 825.8037778 | Z40: 0.06871528962
M41: 8 | N41: 1.724270476 | O41: =PSatVlVvfLfVPREOS_TcinK_PcinPa_w_TinC_alpha($H$5,$I$5*1000000,$K$5,M41,N41) -> 3026.572837 | P41: 7.874921796e-05 | Q41: 0.771122387 | R41: 3021.888547 | S41: 3021.888547 | T41: 0.003026572837 | U41: 762.642672 | V41: 0.07788324527 | W41: 7.287785597e-05 | X41: 0.7711165156 | Y41: 824.0845344 | Z41: 0.07788383828
M42: 10 | N42: 1.715808529 | O42: =PSatVlVvfLfVPREOS_TcinK_PcinPa_w_TinC_alpha($H$5,$I$5*1000000,$K$5,M42,N42) -> 3446.511681 | P42: 7.890323848e-05 | Q42: 0.6818589479 | R42: 3440.556444 | S42: 3440.556444 | T42: 0.003446511681 | U42: 761.1539799 | V42: 0.08807908759 | W42: 7.303187649e-05 | X42: 0.6818530766 | Y42: 822.3465819 | Z42: 0.08807984603
M43: 12 | N43: 1.707397119 | O43: =PSatVlVvfLfVPREOS_TcinK_PcinPa_w_TinC_alpha($H$5,$I$5*1000000,$K$5,M43,N43) -> 3915.953816 | P43: 7.905960411e-05 | Q43: 0.604237291 | R43: 3908.415832 | S43: 3908.415832 | T43: 0.003915953816 | U43: 759.6485548 | V43: 0.09939392172 | W43: 7.318824211e-05 | X43: 0.6042314196 | Y43: 820.5896503 | Z43: 0.09939488754
M44: 14 | N44: 1.699035716 | O44: =PSatVlVvfLfVPREOS_TcinK_PcinPa_w_TinC_alpha($H$5,$I$5*1000000,$K$5,M44,N44) -> 4439.630184 | P44: 7.921836528e-05 | Q44: 0.5365865714 | R44: 4430.129473 | S44: 4430.129473 | T44: 0.004439630184 | U44: 758.1261465 | V44: 0.1119251155 | W44: 7.334700329e-05 | X44: 0.5365807 | Y44: 818.8134662 | Z44: 0.1119263403
M45: 16 | N45: 1.690723798 | O45: =PSatVlVvfLfVPREOS_TcinK_PcinPa_w_TinC_alpha($H$5,$I$5*1000000,$K$5,M45,N45) -> 5022.605797 | P45: 7.937957403e-05 | Q45: 0.4774957392 | R45: 5010.681186 | S45: 5010.681186 | T45: 0.005022605797 | U45: 756.5864989 | V45: 0.1257760207 | W45: 7.350821203e-05 | X45: 0.4774898679 | Y45: 817.01775 | Z45: 0.1257775673
M46: 18 | N46: 1.682460852 | O46: =PSatVlVvfLfVPREOS_TcinK_PcinPa_w_TinC_alpha($H$5,$I$5*1000000,$K$5,M46,N46) -> 5670.29304 | P46: 7.954328392e-05 | Q46: 0.4257702583 | R46: 5655.387044 | S46: 5655.387044 | T46: 0.00567029304 | U46: 755.0293506 | V46: 0.1410561514 | W46: 7.367192193e-05 | X46: 0.4257643869 | Y46: 815.2022159 | Z46: 0.1410580966
M47: 20 | N47: 1.674246376 | O47: =PSatVlVvfLfVPREOS_TcinK_PcinPa_w_TinC_alpha($H$5,$I$5*1000000,$K$5,M47,N47) -> 6388.464807 | P47: 7.970955025e-05 | Q47: 0.3803964868 | R47: 6369.906145 | S47: 6369.906145 | T47: 0.006388464807 | U47: 753.4544332 | V47: 0.1578813582 | W47: 7.383818825e-05 | X47: 0.3803906155 | Y47: 813.3665712 | Z47: 0.1578837951
M48: 22 | N48: 1.666079873 | O48: =PSatVlVvfLfVPREOS_TcinK_PcinPa_w_TinC_alpha($H$5,$I$5*1000000,$K$5,M48,N48) -> 7183.267438 | P48: 7.987843002e-05 | Q48: 0.3405122885 | R48: 7160.250876 | S48: 7160.250876 | T48: 0.007183267438 | U48: 751.8614723 | V48: 0.1763739989 | W48: 7.400706802e-05 | X48: 0.3405064171 | Y48: 811.5105165 | Z48: 0.1763770401
M49: 24 | N49: 1.657960858 | O49: =PSatVlVvfLfVPREOS_TcinK_PcinPa_w_TinC_alpha($H$5,$I$5*1000000,$K$5,M49,N49) -> 8061.233406 | P49: 8.004998198e-05 | Q49: 0.3053827221 | R49: 8032.796623 | S49: 8032.796623 | T49: 0.008061233406 | U49: 750.2501876 | V49: 0.1966631039 | W49: 7.417861999e-05 | X49: 0.3053768507 | Y49: 809.6337464 | Z49: 0.196666885
M50: 26 | N50: 1.64988885 | O50: =PSatVlVvfLfVPREOS_TcinK_PcinPa_w_TinC_alpha($H$5,$I$5*1000000,$K$5,M50,N50) -> 9029.293737 | P50: 8.022426676e-05 | Q50: 0.2743798832 | R50: 8994.290855 | S50: 8994.290855 | T50: 0.009029293737 | U50: 748.6202919 | V50: 0.2188845381 | W50: 7.435290477e-05 | X50: 0.2743740118 | Y50: 807.7359478 | Z50: 0.2188892221
M51: 28 | N51: 1.641863381 | O51: =PSatVlVvfLfVPREOS_TcinK_PcinPa_w_TinC_alpha($H$5,$I$5*1000000,$K$5,M51,N51) -> 10094.79012 | P51: 8.040134691e-05 | Q51: 0.2469661473 | R51: 10051.86153 | S51: 10051.86153 | T51: 0.01009479012 | U51: 746.9714912 | V51: 0.2431811592 | W51: 7.452998492e-05 | X51: 0.246960276 | Y51: 805.8168006 | Z51: 0.2431869407
M52: 30 | N52: 1.633883986 | O52: =PSatVlVvfLfVPREOS_TcinK_PcinPa_w_TinC_alpha($H$5,$I$5*1000000,$K$5,M52,N52) -> 11265.48667 | P52: 8.0581287e-05 | Q52: 0.2226802086 | R52: 11213.02476 | S52: 11213.02476 | T52: 0.01126548667 | U52: 745.3034847 | V52: 0.2697029718 | W52: 7.4709925e-05 | X52: 0.2226743372 | Y52: 803.8759776 | Z52: 0.2697100832
M53: 32 | N53: 1.625950211 | O53: =PSatVlVvfLfVPREOS_TcinK_PcinPa_w_TinC_alpha($H$5,$I$5*1000000,$K$5,M53,N53) -> 12549.58134 | P53: 8.076415368e-05 | Q53: 0.2011254189 | R53: 12485.69167 | S53: 12485.69167 | T53: 0.01254958134 | U53: 743.6159641 | V53: 0.2986072786 | W53: 7.489279168e-05 | X53: 0.2011195476 | Y53: 801.9131434 | Z53: 0.298615996
M54: 34 | N54: 1.618061607 | O54: =PSatVlVvfLfVPREOS_TcinK_PcinPa_w_TinC_alpha($H$5,$I$5*1000000,$K$5,M54,N54) -> 13955.7169 | P54: 8.095001574e-05 | Q54: 0.1819600285 | R54: 13878.17447 | S54: 13878.17447 | T54: 0.0139557169 | U54: 741.9086142 | V54: 0.3300588293 | W54: 7.507865375e-05 | X54: 0.1819541572 | Y54: 799.9279556 | Z54: 0.3300694798
M55: 36 | N55: 1.610217735 | O55: =PSatVlVvfLfVPREOS_TcinK_PcinPa_w_TinC_alpha($H$5,$I$5*1000000,$K$5,M55,N55) -> 15492.99157 | P55: 8.113894431e-05 | Q55: 0.1648889973 | R55: 15399.19151 | S55: 15399.19151 | T55: 0.01549299157 | U55: 740.1811117 | V55: 0.3642299667 | W55: 7.526758232e-05 | X55: 0.1648831259 | Y55: 797.9200627 | Z55: 0.3642429367
M56: 38 | N56: 1.602418161 | O56: =PSatVlVvfLfVPREOS_TcinK_PcinPa_w_TinC_alpha($H$5,$I$5*1000000,$K$5,M56,N56) -> 17170.96914 | P56: 8.133101282e-05 | Q56: 0.1496571107 | R56: 17057.87152 | S56: 17057.87152 | T56: 0.01717096914 | U56: 738.4331255 | V56: 0.4013007715 | W56: 7.545965083e-05 | X56: 0.1496512394 | Y56: 795.8891055 | Z56: 0.401316516
M57: 40 | N57: 1.594662458 | O57: =PSatVlVvfLfVPREOS_TcinK_PcinPa_w_TinC_alpha($H$5,$I$5*1000000,$K$5,M57,N57) -> 18999.68866 | P57: 8.152629717e-05 | Q57: 0.1360431794 | R57: 18863.7568 | S57: 18863.7568 | T57: 0.01899968866 | U57: 736.6643167 | V57: 0.4414592062 | W57: 7.565493518e-05 | X57: 0.1360373081 | Y57: 793.8347162 | Z57: 0.4414782595
M58: 42 | N58: 1.586950208 | O58: =PSatVlVvfLfVPREOS_TcinK_PcinPa_w_TinC_alpha($H$5,$I$5*1000000,$K$5,M58,N58) -> 20989.67372 | P58: 8.172487584e-05 | Q58: 0.1238551414 | R58: 20826.80535 | S58: 20826.80535 | T58: 0.02098967372 | U58: 734.8743377 | V58: 0.4849012592 | W58: 7.585351384e-05 | X58: 0.12384927 | Y58: 791.756518 | Z58: 0.4849242471
M59: 44 | N59: 1.579280996 | O59: =PSatVlVvfLfVPREOS_TcinK_PcinPa_w_TinC_alpha($H$5,$I$5*1000000,$K$5,M59,N59) -> 23151.94115 | P59: 8.192682994e-05 | Q59: 0.112925918 | R59: 22957.39202 | S59: 22957.39202 | T59: 0.02315194115 | U59: 733.0628324 | V59: 0.5318310894 | W59: 7.605546794e-05 | X59: 0.1129200467 | Y59: 789.6541251 | Z59: 0.5318587423
M60: 46 | N60: 1.571654417 | O60: =PSatVlVvfLfVPREOS_TcinK_PcinPa_w_TinC_alpha($H$5,$I$5*1000000,$K$5,M60,N60) -> 25498.00928 | P60: 8.213224341e-05 | Q60: 0.1031099013 | R60: 25266.3085 | S60: 25266.3085 | T60: 0.02549800928 | U60: 731.2294357 | V60: 0.5824611722 | W60: 7.626088141e-05 | X60: 0.10310403 | Y60: 787.5271422 | Z60: 0.5824943411
M61: 48 | N61: 1.56407007 | O61: =PSatVlVvfLfVPREOS_TcinK_PcinPa_w_TinC_alpha($H$5,$I$5*1000000,$K$5,M61,N61) -> 28039.90576 | P61: 8.234120308e-05 | Q61: 0.09427996906 | R61: 27764.76223 | S61: 27764.76223 | T61: 0.02803990576 | U61: 729.3737734 | V61: 0.6370124492 | W61: 7.646984109e-05 | X61: 0.0942740977 | Y61: 785.3751642 | Z61: 0.6370521221
M62: 50 | N62: 1.556527561 | O62: =PSatVlVvfLfVPREOS_TcinK_PcinPa_w_TinC_alpha($H$5,$I$5*1000000,$K$5,M62,N62) -> 30790.17478 | P62: 8.255379882e-05 | Q62: 0.08632494467 | R62: 30464.37408 | S62: 30464.37408 | T62: 0.03079017478 | U62: 727.4954619 | V62: 0.6957144801 | W62: 7.668243682e-05 | X62: 0.0863190733 | Y62: 783.1977763 | Z62: 0.6957618021
M63: 52 | N63: 1.549026503 | O63: =PSatVlVvfLfVPREOS_TcinK_PcinPa_w_TinC_alpha($H$5,$I$5*1000000,$K$5,M63,N63) -> 33761.88384 | P63: 8.277012367e-05 | Q63: 0.07914743108 | R63: 33377.17499 | S63: 33377.17499 | T63: 0.03376188384 | U63: 725.5941074 | V63: 0.7588056009 | W63: 7.689876168e-05 | X63: 0.07914155972 | Y63: 780.994553 | Z63: 0.7588618953
M64: 54 | N64: 1.541566514 | O64: =PSatVlVvfLfVPREOS_TcinK_PcinPa_w_TinC_alpha($H$5,$I$5*1000000,$K$5,M64,N64) -> 36968.63006 | P64: 8.2990274e-05 | Q64: 0.07266195987 | R64: 36515.60136 | S64: 36515.60136 | T64: 0.03696863006 | U64: 723.6693061 | V64: 0.826533087 | W64: 7.7118912e-05 | X64: 0.07265608851 | Y64: 778.7650583 | Z64: 0.8265998794
M65: 56 | N65: 1.534147217 | O65: =PSatVlVvfLfVPREOS_TcinK_PcinPa_w_TinC_alpha($H$5,$I$5*1000000,$K$5,M65,N65) -> 40424.54595 | P65: 8.321434962e-05 | Q65: 0.06679340707 | R65: 39892.48919 | S65: 39892.48919 | T65: 0.04042454595 | U65: 721.720644 | V65: 0.8991533242 | W65: 7.734298763e-05 | X65: 0.06678753571 | Y65: 776.5088451 | Z65: 0.8992323697
M66: 58 | N66: 1.526768243 | O66: =PSatVlVvfLfVPREOS_TcinK_PcinPa_w_TinC_alpha($H$5,$I$5*1000000,$K$5,M66,N66) -> 44144.30473 | P66: 8.344245399e-05 | Q66: 0.06147563469 | R66: 43521.06716 | S66: 43521.06716 | T66: 0.04414430473 | U66: 719.7476959 | V66: 0.9769319878 | W66: 7.7571092e-05 | X66: 0.06146976333 | Y66: 774.225455 | Z66: 0.9770253007
M67: 60 | N67: 1.519429227 | O67: =PSatVlVvfLfVPREOS_TcinK_PcinPa_w_TinC_alpha($H$5,$I$5*1000000,$K$5,M67,N67) -> 48143.12511 | P67: 8.367469437e-05 | Q67: 0.05665032379 | R67: 47414.94843 | S67: 47414.94843 | T67: 0.04814312511 | U67: 717.7500253 | V67: 1.060144232 | W67: 7.780333237e-05 | X67: 0.05664445243 | Y67: 771.9144177 | Z67: 1.060254119
M68: 62 | N68: =(1+$M$8*(1-((M68+273.15)/$H$5)^0.5))^2 -> 1.512129809 | O68: =PSatVlVvfLfVPREOS_TcinK_PcinPa_w_TinC_alpha($H$5,$I$5*1000000,$K$5,M68,N68) -> 52436.77576 | P68: 8.391118196e-05 | Q68: 0.05226597025 | R68: 51588.12121 | S68: 51588.12121 | T68: 0.05243677576 | U68: 715.7271844 | V68: 1.14907489 | W68: =P68-$M$9 -> 7.803981996e-05 | X68: =Q68-$M$9 -> 0.05226009889 | Y68: 769.5752506 | Z68: 1.149203987
M69: 64 | N69: 1.504869635 | O69: =PSatVlVvfLfVPREOS_TcinK_PcinPa_w_TinC_alpha($H$5,$I$5*1000000,$K$5,M69,N69) -> 57041.57913 | P69: 8.415203214e-05 | Q69: 0.04827701919 | R69: 56054.93827 | S69: 56054.93827 | T69: 0.05704157913 | U69: 713.678713 | V69: 1.244018686 | W69: 7.828067015e-05 | X69: 0.04827114783 | Y69: 767.2074586 | Z69: 1.24417
M70: 66 | N70: 1.497648357 | O70: =PSatVlVvfLfVPREOS_TcinK_PcinPa_w_TinC_alpha($H$5,$I$5*1000000,$K$5,M70,N70) -> 61974.41503 | P70: 8.439736468e-05 | Q70: 0.04464311752 | R70: 60830.10515 | S70: 60830.10515 | T70: 0.06197441503 | U70: 711.6041387 | V70: 1.345280467 | W70: 7.852600268e-05 | X70: 0.04463724616 | Y70: 764.8105334 | Z70: 1.345457419
M71: 68 | N71: 1.490465632 | O71: =PSatVlVvfLfVPREOS_TcinK_PcinPa_w_TinC_alpha($H$5,$I$5*1000000,$K$5,M71,N71) -> 67252.72366 | P71: 8.464730386e-05 | Q71: 0.04132846753 | R71: 65928.66729 | S71: 65928.66729 | T71: 0.06725272366 | U71: 709.502976 | V71: 1.45317544 | W71: 7.877594186e-05 | X71: 0.04132259617 | Y71: 762.3839535 | Z71: 1.453381916
M72: 70 | N72: 1.48332112 | O72: =PSatVlVvfLfVPREOS_TcinK_PcinPa_w_TinC_alpha($H$5,$I$5*1000000,$K$5,M72,N72) -> 72894.50834 | P72: 8.490197881e-05 | Q72: 0.0383012669 | R72: 71365.996 | S72: 71365.996 | T72: 0.07289450834 | U72: 707.374726 | V72: 1.568029438 | W72: 7.903061682e-05 | X72: 0.03829539554 | Y72: 759.9271829 | Z72: 1.568269844
M73: 72 | N73: 1.476214487 | O73: =PSatVlVvfLfVPREOS_TcinK_PcinPa_w_TinC_alpha($H$5,$I$5*1000000,$K$5,M73,N73) -> 78918.33778 | P73: 8.516152368e-05 | Q73: 0.03553322285 | R73: 77157.77336 | S73: 77157.77336 | T73: 0.07891833778 | U73: 705.2188759 | V73: 1.690179195 | W73: 7.929016168e-05 | X73: 0.03552735148 | Y73: 757.4396713 | Z73: 1.69045852
M74: 74 | N74: 1.469145407 | O74: =PSatVlVvfLfVPREOS_TcinK_PcinPa_w_TinC_alpha($H$5,$I$5*1000000,$K$5,M74,N74) -> 85343.34809 | P74: 8.542607789e-05 | Q74: 0.03299912987 | R74: 83319.97594 | S74: 83319.97594 | T74: 0.08534334809 | U74: 703.0348985 | V74: 1.819972655 | W74: 7.95547159e-05 | X74: 0.03299325851 | Y74: 754.9208532 | Z74: 1.820296531
M75: 76 | N75: 1.462113553 | O75: =PSatVlVvfLfVPREOS_TcinK_PcinPa_w_TinC_alpha($H$5,$I$5*1000000,$K$5,M75,N75) -> 92189.24439 | P75: 8.569578645e-05 | Q75: 0.03067650226 | R75: 89868.85762 | S75: 89868.85762 | T75: 0.09218924439 | U75: 700.8222514 | V75: 1.957769288 | W75: 7.982442446e-05 | X75: 0.0306706309 | Y75: 752.3701474 | Z75: 1.958144069
M76: 78 | N76: 1.455118608 | O76: =PSatVlVvfLfVPREOS_TcinK_PcinPa_w_TinC_alpha($H$5,$I$5*1000000,$K$5,M76,N76) -> 99476.30212 | P76: 8.597080019e-05 | Q76: 0.02854525379 | R76: 96820.93128 | S76: 96820.93128 | T76: 0.09947630212 | U76: 698.5803769 | V76: 2.103940446 | W76: 8.009943819e-05 | X76: 0.02853938243 | Y76: 749.7869568 | Z76: 2.104373287
M77: 80 | N77: 1.448160255 | O77: =PSatVlVvfLfVPREOS_TcinK_PcinPa_w_TinC_alpha($H$5,$I$5*1000000,$K$5,M77,N77) -> 107225.3681 | P77: 8.625127607e-05 | Q77: 0.02658741804 | R77: 104192.9496 | S77: 104192.9496 | T77: 0.1072253681 | U77: 696.308701 | V77: 2.258869737 | W77: 8.037991408e-05 | X77: 0.02658154668 | Y77: 747.1706668 | Z77: 2.259368679
M78: 82 | N78: 1.441238185 | O78: =PSatVlVvfLfVPREOS_TcinK_PcinPa_w_TinC_alpha($H$5,$I$5*1000000,$K$5,M78,N78) -> 115457.8614 | P78: 8.653737755e-05 | Q78: 0.02478690397 | R78: 112001.8847 | S78: 112001.8847 | T78: 0.1154578614 | U78: 694.0066327 | V78: 2.422953431 | W78: 8.066601556e-05 | X78: 0.0247810326 | Y78: 744.5206458 | Z78: 2.4235275
M79: 84 | N79: 1.434352091 | O79: =PSatVlVvfLfVPREOS_TcinK_PcinPa_w_TinC_alpha($H$5,$I$5*1000000,$K$5,M79,N79) -> 124195.7737 | P79: 8.682927489e-05 | Q79: 0.02312928183 | R79: 120264.9075 | S79: 120264.9075 | T79: 0.1241957737 | U79: 691.6735637 | V79: 2.596600899 | W79: 8.09579129e-05 | X79: 0.02312341047 | Y79: 741.8362437 | Z79: 2.597260213
M80: 86 | N80: 1.427501672 | O80: =PSatVlVvfLfVPREOS_TcinK_PcinPa_w_TinC_alpha($H$5,$I$5*1000000,$K$5,M80,N80) -> 133461.6699 | P80: 8.712714554e-05 | Q80: 0.02160159557 | R80: 128999.3655 | S80: 128999.3655 | T80: 0.1334616699 | U80: 689.3088673 | V80: 2.780235089 | W80: 8.125578354e-05 | X80: 0.02159572421 | Y80: 739.1167912 | Z80: 2.780990969
M81: 88 | N81: 1.42068663 | O81: =PSatVlVvfLfVPREOS_TcinK_PcinPa_w_TinC_alpha($H$5,$I$5*1000000,$K$5,M81,N81) -> 143278.6879 | P81: 8.743117458e-05 | Q81: 0.02019219807 | R81: 138222.7601 | S81: 138222.7601 | T81: 0.1432786879 | U81: 686.9118971 | V81: 2.974293031 | W81: 8.155981259e-05 | X81: 0.02018632671 | Y81: 736.3615989 | Z81: 2.975158129
M82: 90 | N82: 1.413906672 | O82: =PSatVlVvfLfVPREOS_TcinK_PcinPa_w_TinC_alpha($H$5,$I$5*1000000,$K$5,M82,N82) -> 153670.5392 | P82: 8.774155474e-05 | Q82: 0.01889060628 | R82: 147952.7234 | S82: 147952.7234 | T82: 0.1536705392 | U82: 684.48199 | V82: 3.179226389 | W82: 8.187019275e-05 | X82: 0.01888473492 | Y82: 733.5699597 | Z82: 3.180214827
M83: 92 | N83: 1.407161508 | O83: =PSatVlVvfLfVPREOS_TcinK_PcinPa_w_TinC_alpha($H$5,$I$5*1000000,$K$5,M83,N83) -> 164661.5082 | P83: 8.805848776e-05 | Q83: 0.01768737376 | R83: 158206.994 | S83: 158206.994 | T83: 0.1646615082 | U83: 682.0184576 | V83: 3.395502058 | W83: 8.218712577e-05 | X83: 0.0176815024 | Y83: 730.7411403 | Z83: 3.396629577
M84: 94 | N84: 1.400450852 | O84: =PSatVlVvfLfVPREOS_TcinK_PcinPa_w_TinC_alpha($H$5,$I$5*1000000,$K$5,M84,N84) -> 176276.4523 | P84: 8.838218389e-05 | Q84: 0.01657397826 | R84: 169003.3923 | S84: 169003.3923 | T84: 0.1762764523 | U84: 679.5205929 | V84: 3.623602799 | W84: 8.25108219e-05 | X84: 0.01656810689 | Y84: 727.8743881 | Z84: 3.624886922
M85: 96 | N85: 1.393774424 | O85: =PSatVlVvfLfVPREOS_TcinK_PcinPa_w_TinC_alpha($H$5,$I$5*1000000,$K$5,M85,N85) -> 188540.8016 | P85: 8.871286292e-05 | Q85: 0.01554272253 | R85: 180359.7953 | S85: 180359.7953 | T85: 0.1885408016 | U85: 676.9876658 | V85: 3.864027933 | W85: 8.284150093e-05 | X85: 0.01553685116 | Y85: 724.9689265 | Z85: 3.865488146
M86: 98 | N86: 1.387131945 | O86: =PSatVlVvfLfVPREOS_TcinK_PcinPa_w_TinC_alpha($H$5,$I$5*1000000,$K$5,M86,N86) -> 201480.5585 | P86: 8.905075462e-05 | Q86: 0.01458664665 | R86: 192294.1108 | S86: 192294.1108 | T86: 0.2014805585 | U86: 674.4189227 | V86: 4.117294086 | W86: 8.317939263e-05 | X86: 0.01458077529 | Y86: 722.0239545 | Z86: 4.118952031
M87: 100 | N87: 1.380523142 | O87: =PSatVlVvfLfVPREOS_TcinK_PcinPa_w_TinC_alpha($H$5,$I$5*1000000,$K$5,M87,N87) -> 215122.2973 | P87: 8.939609932e-05 | Q87: 0.01369945048 | R87: 204824.2511 | S87: 204824.2511 | T87: 0.2151222973 | U87: 671.8135853 | V87: 4.383935991 | W87: 8.352473733e-05 | X87: 0.01369357911 | Y87: 719.0386456 | Z87: 4.385815681
M88: 102 | N88: 1.373947743 | O88: =PSatVlVvfLfVPREOS_TcinK_PcinPa_w_TinC_alpha($H$5,$I$5*1000000,$K$5,M88,N88) -> 229493.1638 | P88: 8.974914856e-05 | Q88: 0.01287542487 | R88: 217968.1065 | S88: 217968.1065 | T88: 0.2294931638 | U88: 669.1708497 | V88: 4.664507356 | W88: 8.387778656e-05 | X88: 0.0128695535 | Y88: 716.0121465 | Z88: 4.666635403
M89: 104 | N89: 1.367405483 | O89: =PSatVlVvfLfVPREOS_TcinK_PcinPa_w_TinC_alpha($H$5,$I$5*1000000,$K$5,M89,N89) -> 244620.8753 | P89: 9.011016575e-05 | Q89: 0.01210939076 | R89: 231743.5185 | S89: 231743.5185 | T89: 0.2446208753 | U89: 666.4898849 | V89: 4.959581797 | W89: 8.423880375e-05 | X89: 0.0121035194 | Y89: 712.9435762 | Z89: 4.961987668
M90: 106 | N90: 1.360896097 | O90: =PSatVlVvfLfVPREOS_TcinK_PcinPa_w_TinC_alpha($H$5,$I$5*1000000,$K$5,M90,N90) -> 260533.7197 | P90: 9.047942692e-05 | Q90: 0.01139664502 | R90: 246168.2523 | S90: 246168.2523 | T90: 0.2605337197 | U90: 663.769832 | V90: 5.269753851 | W90: 8.460806492e-05 | X90: 0.01139077366 | Y90: 709.8320243 | Z90: 5.27247014
M91: 108 | N91: 1.354419327 | O91: =PSatVlVvfLfVPREOS_TcinK_PcinPa_w_TinC_alpha($H$5,$I$5*1000000,$K$5,M91,N91) -> 277260.5559 | P91: 9.085722149e-05 | Q91: 0.0107329123 | R91: 261259.9695 | S91: 261259.9695 | T91: 0.2772605559 | U91: 661.0098021 | V91: 5.595640059 | W91: 8.49858595e-05 | X91: 0.01072704094 | Y91: 706.6765501 | Z91: 5.598702789
M92: 110 | N92: 1.347974915 | O92: =PSatVlVvfLfVPREOS_TcinK_PcinPa_w_TinC_alpha($H$5,$I$5*1000000,$K$5,M92,N92) -> 294830.8133 | P92: 9.124385319e-05 | Q92: 0.01011430216 | R92: 277036.2008 | S92: 277036.2008 | T92: 0.2948308133 | U92: 658.2088755 | V92: 5.937880149 | W92: 8.537249119e-05 | X92: 0.0101084308 | Y92: 703.4761802 | Z92: 5.941329096
M93: 112 | N93: 1.341562609 | O93: =PSatVlVvfLfVPREOS_TcinK_PcinPa_w_TinC_alpha($H$5,$I$5*1000000,$K$5,M93,N93) -> 313274.492 | P93: 9.163964119e-05 | Q93: 0.009537270925 | R93: 293514.3182 | S93: 293514.3182 | T93: 0.313274492 | U93: 655.3660973 | V93: 6.297138298 | W93: 8.576827919e-05 | X93: 0.009531399563 | Y93: 700.2299051 | Z93: 6.301017348
M94: 114 | N94: 1.33518216 | O94: =PSatVlVvfLfVPREOS_TcinK_PcinPa_w_TinC_alpha($H$5,$I$5*1000000,$K$5,M94,N94) -> 332622.1627 | P94: 9.204491923e-05 | Q94: 0.008998587588 | R94: 310711.507 | S94: 310711.507 | T94: 0.3326221627 | U94: 652.48049 | V94: 6.674104509 | W94: 8.617355724e-05 | X94: 0.008992716226 | Y94: 696.9366929 | Z94: 6.678462045
M95: 116 | N95: 1.328833319 | O95: =PSatVlVvfLfVPREOS_TcinK_PcinPa_w_TinC_alpha($H$5,$I$5*1000000,$K$5,M95,N95) -> 352904.9673 | P95: 9.246004088e-05 | Q95: 0.008495303371 | R95: 328644.7391 | S95: 328644.7391 | T95: 0.3529049673 | U95: 649.5510215 | V95: 7.069496094 | W95: 8.658867888e-05 | X95: 0.008489432009 | Y95: 693.5954535 | Z95: 7.074385417
M96: 118 | N96: 1.322515845 | O96: =PSatVlVvfLfVPREOS_TcinK_PcinPa_w_TinC_alpha($H$5,$I$5*1000000,$K$5,M96,N96) -> 374154.6193 | P96: 9.288537628e-05 | Q96: 0.008024724524 | R96: 347330.7444 | S96: 347330.7444 | T96: 0.3741546193 | U96: 646.5766346 | V96: 7.484059275 | W96: 8.701401428e-05 | X96: 0.008018853162 | Y96: 690.2050721 | Z96: 7.489539063
M97: 120 | N97: 1.316229496 | O97: =PSatVlVvfLfVPREOS_TcinK_PcinPa_w_TinC_alpha($H$5,$I$5*1000000,$K$5,M97,N97) -> 396403.4044 | P97: 9.332131568e-05 | Q97: 0.007584387967 | R97: 366785.9842 | S97: 366785.9841 | T97: 0.3964034044 | U97: 643.5562289 | V97: 7.91857092 | W97: 8.744995369e-05 | X97: 0.007578516605 | Y97: 686.7643888 | Z97: 7.924705735
M98: 122 | N98: 1.309974036 | O98: =PSatVlVvfLfVPREOS_TcinK_PcinPa_w_TinC_alpha($H$5,$I$5*1000000,$K$5,M98,N98) -> 419684.1817 | P98: 9.376827037e-05 | Q98: 0.00717203946 | R98: 387026.6235 | S98: 387026.6235 | T98: 0.4196841817 | U98: 640.4886617 | V98: 8.373840431 | W98: 8.789690837e-05 | X98: 0.007166168098 | Y98: 683.2722005 | Z98: 8.380701259
M99: 124 | N99: 1.303749231 | O99: =PSatVlVvfLfVPREOS_TcinK_PcinPa_w_TinC_alpha($H$5,$I$5*1000000,$K$5,M99,N99) -> 444030.3844 | P99: 9.422667409e-05 | Q99: 0.006785614034 | R99: 408068.5046 | S99: 408068.5046 | T99: 0.4440303844 | U99: 637.3727459 | V99: 8.850711771 | W99: 8.83553121e-05 | X99: 0.006779742672 | Y99: 679.7272578 | Z99: 8.858376624
M100: 126 | N100: =(1+$M$8*(1-((M100+273.15)/$H$5)^0.5))^2 -> 1.297554848 | O100: =PSatVlVvfLfVPREOS_TcinK_PcinPa_w_TinC_alpha($H$5,$I$5*1000000,$K$5,M100,N100) -> 469476.022 | P100: 9.469698473e-05 | Q100: 0.006423218404 | R100: 429927.1201 | S100: 429927.1201 | T100: 0.469476022 | U100: 634.2072472 | V100: 9.350065687 | W100: =P100-$M$9 -> 8.882562273e-05 | X100: =Q100-$M$9 -> 0.006417347042 | Y100: 676.1282629 | Z100: 9.358620253
M101: 128 | N101: 1.29139066 | O101: =PSatVlVvfLfVPREOS_TcinK_PcinPa_w_TinC_alpha($H$5,$I$5*1000000,$K$5,M101,N101) -> 496055.6813 | P101: 9.517968603e-05 | Q101: 0.006083115177 | R101: 452617.5864 | S101: 452617.5864 | T101: =O101/1000000 -> 0.4960556813 | U101: =1/P101*$F$5/1000 -> 630.9908816 | V101: =1/Q101*$F$5/1000 -> 9.872822107 | W101: 8.930832404e-05 | X101: 0.006077243815 | Y101: =1/W101*$F$5/1000 -> 672.4738668 | Z101: =1/X101*$F$5/1000 -> 9.882360463
M102: 130 | N102: 1.285256442 | O102: =PSatVlVvfLfVPREOS_TcinK_PcinPa_w_TinC_alpha($H$5,$I$5*1000000,$K$5,M102,N102) -> 523804.529 | P102: 9.567528955e-05 | Q102: 0.005763708632 | R102: 476154.6186 | S102: 476154.6186 | T102: 0.523804529 | U102: 627.7223124 | V102: 10.41994275 | W102: 8.980392756e-05 | X102: 0.00575783727 | Y102: 668.7626659 | Z102: 10.43056814
M103: 132 | N103: 1.27915197 | O103: =PSatVlVvfLfVPREOS_TcinK_PcinPa_w_TinC_alpha($H$5,$I$5*1000000,$K$5,M103,N103) -> 552758.3138 | P103: 9.618433675e-05 | Q103: 0.005463531921 | R103: 500552.5044 | S103: 500552.5044 | T103: 0.5527583138 | U103: 624.4001469 | V103: 10.99243399 | W103: 9.031297476e-05 | X103: 0.005457660559 | Y103: 664.993199 | Z103: 11.00425967
M104: 134 | N104: 1.273077024 | O104: =PSatVlVvfLfVPREOS_TcinK_PcinPa_w_TinC_alpha($H$5,$I$5*1000000,$K$5,M104,N104) -> 582953.3695 | P104: 9.670740131e-05 | Q104: 0.005181235527 | R104: 525825.0794 | S104: 525825.0794 | T104: 0.5829533695 | U104: 621.022933 | V104: 11.59134992 | W104: 9.083603931e-05 | X104: 0.005175364165 | Y104: 661.1639439 | Z104: 11.6045001
M105: 136 | N105: 1.267031387 | O105: =PSatVlVvfLfVPREOS_TcinK_PcinPa_w_TinC_alpha($H$5,$I$5*1000000,$K$5,M105,N105) -> 614426.6177 | P105: 9.724509169e-05 | Q105: 0.004915576855 | R105: 551985.7028 | S105: 551985.7028 | T105: 0.6144266177 | U105: 617.5891549 | V105: 12.21779575 | W105: 9.13737297e-05 | X105: 0.004909705493 | Y105: 657.2733126 | Z105: 12.23240663
M106: 138 | N106: 1.261014845 | O106: =PSatVlVvfLfVPREOS_TcinK_PcinPa_w_TinC_alpha($H$5,$I$5*1000000,$K$5,M106,N106) -> 647215.5714 | P106: 9.779805439e-05 | Q106: 0.004665410819 | R106: 579047.2333 | S106: 579047.2333 | T106: 0.6472155714 | U106: 614.0972269 | V106: 12.87293152 | W106: 9.19266924e-05 | X106: 0.004659539457 | Y106: 653.3196445 | Z106: 12.88915236
M107: 140 | N107: 1.255027186 | O107: =PSatVlVvfLfVPREOS_TcinK_PcinPa_w_TinC_alpha($H$5,$I$5*1000000,$K$5,M107,N107) -> 681358.3393 | P107: 9.836697374e-05 | Q107: 0.00442968135 | R107: 607022.0063 | S107: 607022.0063 | T107: 0.6813583393 | U107: 610.5455085 | V107: 13.55797613 | W107: 9.249561174e-05 | X107: 0.004423809988 | Y107: 649.3012249 | Z107: 13.57597053
M108: 142 | N108: 1.2490682 | O108: =PSatVlVvfLfVPREOS_TcinK_PcinPa_w_TinC_alpha($H$5,$I$5*1000000,$K$5,M108,N108) -> 716893.6297 | P108: 9.895258255e-05 | Q108: 0.004207413693 | R108: 635921.8109 | S108: 635921.8109 | T108: 0.7168936297 | U108: 606.9322543 | V108: 14.27421176 | W108: 9.308122056e-05 | X108: 0.004201542331 | Y108: 645.2162277 | Z108: 14.29415897
M109: 144 | N109: 1.243137679 | O109: =PSatVlVvfLfVPREOS_TcinK_PcinPa_w_TinC_alpha($H$5,$I$5*1000000,$K$5,M109,N109) -> 753860.7555 | P109: 9.955565815e-05 | Q109: 0.003997707447 | R109: 665757.8684 | S109: 665757.8684 | T109: 0.7538607555 | U109: 603.2556573 | V109: 15.02298875 | W109: 9.368429616e-05 | X109: 0.003991836085 | Y109: 641.0627657 | Z109: 15.0450852
M110: 146 | N110: 1.237235421 | O110: =PSatVlVvfLfVPREOS_TcinK_PcinPa_w_TinC_alpha($H$5,$I$5*1000000,$K$5,M110,N110) -> 792299.6393 | P110: 0.0001001770305 | Q110: 0.003799730244 | R110: 696540.8108 | S110: 696540.8108 | T110: 0.7922996393 | U110: 599.5138178 | V110: 15.80573097 | W110: 9.43056685e-05 | X110: 0.003793858882 | Y110: 636.8388556 | Z110: 15.83019186
M111: 148 | N111: 1.231361221 | O111: =PSatVlVvfLfVPREOS_TcinK_PcinPa_w_TinC_alpha($H$5,$I$5*1000000,$K$5,M111,N111) -> 832250.8194 | P111: 0.0001008175859 | Q111: 0.003612712023 | R111: 728280.6605 | S111: 728280.6605 | T111: 0.8322508194 | U111: 595.704742 | V111: 16.62394169 | W111: 9.494622391e-05 | X111: 0.003606840661 | Y111: 632.5424174 | Z111: 16.65100281
M112: 150 | N112: 1.225514882 | O112: =PSatVlVvfLfVPREOS_TcinK_PcinPa_w_TinC_alpha($H$5,$I$5*1000000,$K$5,M112,N112) -> 873755.4559 | P112: 0.0001014782722 | Q112: 0.00343593982 | R112: 760986.8104 | S112: 760986.8104 | T112: 0.8737554559 | U112: 591.8263356 | V112: 17.4792101 | W112: 9.560691024e-05 | X112: 0.003430068458 | Y112: 628.1712676 | Z112: 17.50912984
M113: 152 | N113: 1.219696205 | O113: =PSatVlVvfLfVPREOS_TcinK_PcinPa_w_TinC_alpha($H$5,$I$5*1000000,$K$5,M113,N113) -> 916855.3374 | P113: 0.0001021601045 | Q113: 0.003268753044 | R113: 794668.0055 | S113: 794668.0055 | T113: 0.9168553374 | U113: 587.8763958 | V113: 18.37321853 | W113: 9.628874246e-05 | X113: 0.003262881682 | Y113: 623.723111 | Z113: 18.40628005
M114: 154 | N114: 1.213904996 | O114: =PSatVlVvfLfVPREOS_TcinK_PcinPa_w_TinC_alpha($H$5,$I$5*1000000,$K$5,M114,N114) -> 961592.8884 | P114: 0.0001028641711 | Q114: 0.00311053917 | R114: 829332.324 | S114: 829332.324 | T114: 0.9615928884 | U114: 583.8526027 | V114: 19.30775043 | W114: 9.699280907e-05 | X114: 0.003104667808 | Y114: 619.1955319 | Z114: 19.3442641
M115: 156 | N115: 1.208141062 | O115: =PSatVlVvfLfVPREOS_TcinK_PcinPa_w_TinC_alpha($H$5,$I$5*1000000,$K$5,M115,N115) -> 1008011.177 | P115: 0.0001035916412 | Q115: 0.002960729821 | R115: 864987.161 | S115: 864987.161 | T115: 1.008011177 | U115: 579.7525103 | V115: 20.28469926 | W115: 9.772027916e-05 | X115: 0.002954858459 | Y115: 614.5859848 | Z115: 20.32500535
M116: 158 | N116: 1.202404213 | O116: =PSatVlVvfLfVPREOS_TcinK_PcinPa_w_TinC_alpha($H$5,$I$5*1000000,$K$5,M116,N116) -> 1056153.924 | P116: 0.0001043437724 | Q116: 0.002818797201 | R116: 901639.2108 | S116: 901639.2108 | T116: 1.056153924 | U116: 575.5735357 | V116: 21.30607834 | W116: 9.84724104e-05 | X116: 0.002812925839 | Y116: 609.8917835 | Z116: 21.35055008
M117: 160 | N117: 1.19669426 | O117: =PSatVlVvfLfVPREOS_TcinK_PcinPa_w_TinC_alpha($H$5,$I$5*1000000,$K$5,M117,N117) -> 1106065.511 | P117: 0.00010512192 | Q117: 0.002684250835 | R117: 939294.4526 | S117: 939294.4526 | T117: 1.106065511 | U117: 571.3129478 | V117: 22.37403197 | W117: 9.925055802e-05 | X117: 0.002678379473 | Y117: 605.1100891 | Z117: 22.42307881
M118: 162 | N118: 1.191011017 | O118: =PSatVlVvfLfVPREOS_TcinK_PcinPa_w_TinC_alpha($H$5,$I$5*1000000,$K$5,M118,N118) -> 1157790.991 | P118: 0.000105927547 | Q118: 0.002556634594 | R118: 977958.1347 | S118: 977958.1347 | T118: 1.157790991 | U118: 566.9678542 | V118: 23.49084775 | W118: 0.000100056185 | X118: 0.002550763232 | Y118: 600.2378966 | Z118: 23.54491912
M119: 164 | N119: 1.1853543 | O119: =PSatVlVvfLfVPREOS_TcinK_PcinPa_w_TinC_alpha($H$5,$I$5*1000000,$K$5,M119,N119) -> 1211376.098 | P119: 0.0001067622355 | Q119: 0.002435523983 | R119: 1017634.761 | S119: 1017634.761 | T119: 1.211376098 | U119: 562.535186 | V119: 24.65897048 | W119: 0.0001008908735 | X119: 0.002429652621 | Y119: 595.2720193 | Z119: 24.71855996
M120: 166 | N120: 1.179723928 | O120: =PSatVlVvfLfVPREOS_TcinK_PcinPa_w_TinC_alpha($H$5,$I$5*1000000,$K$5,M120,N120) -> 1266867.258 | P120: 0.000107627701 | Q120: 0.00232052365 | R120: 1058328.078 | S120: 1058328.078 | T120: 1.266867258 | U120: 558.0116775 | V120: 25.88101785 | W120: 0.000101756339 | X120: 0.002314652288 | Y120: 590.2090677 | Z120: 25.94666781
M121: 168 | N121: 1.17411972 | O121: =PSatVlVvfLfVPREOS_TcinK_PcinPa_w_TinC_alpha($H$5,$I$5*1000000,$K$5,M121,N121) -> 1324311.602 | P121: 0.0001085258002 | Q121: 0.002211265111 | R121: 1100041.064 | S121: 1100041.064 | T121: 1.324311602 | U121: 553.3938831 | V121: 27.15979812 | W121: 0.0001026544382 | X121: 0.002205393749 | Y121: 585.0454695 | Z121: 27.23210494
M122: 170 | N122: 1.1685415 | O122: =PSatVlVvfLfVPREOS_TcinK_PcinPa_w_TinC_alpha($H$5,$I$5*1000000,$K$5,M122,N122) -> 1383756.977 | P122: 0.0001094585638 | Q122: 0.002107404666 | R122: 1142775.913 | S122: 1142775.913 | T122: 1.383756977 | U122: 548.6780745 | V122: 28.49833019 | W122: 0.0001035872018 | X122: 0.002101533304 | Y122: 579.7773565 | Z122: 28.57795015
M123: 172 | N123: 1.16298909 | O123: =PSatVlVvfLfVPREOS_TcinK_PcinPa_w_TinC_alpha($H$5,$I$5*1000000,$K$5,M123,N123) -> 1445251.96 | P123: 0.0001104281989 | Q123: 0.002008621482 | R123: 1186534.032 | S123: 1186534.032 | T123: 1.44525196 | U123: 543.8603057 | V123: 29.89986643 | W123: 0.0001045568369 | X123: 0.00200275012 | Y123: 574.4006398 | Z123: 29.98752236
M124: 174 | N124: 1.157462319 | O124: =PSatVlVvfLfVPREOS_TcinK_PcinPa_w_TinC_alpha($H$5,$I$5*1000000,$K$5,M124,N124) -> 1508845.872 | P124: 0.0001114371208 | Q124: 0.001914615834 | R124: 1231316.025 | S124: 1231316.025 | T124: 1.508845872 | U124: 538.93634 | V124: 31.3679188 | W124: 0.0001055657588 | X124: 0.001908744472 | Y124: 568.91093 | Z124: 31.46440757
M125: 176 | N125: 1.151961012 | O125: =PSatVlVvfLfVPREOS_TcinK_PcinPa_w_TinC_alpha($H$5,$I$5*1000000,$K$5,M125,N125) -> 1574588.791 | P125: 0.0001124879768 | Q125: 0.001825107486 | R125: 1277121.686 | S125: 1277121.686 | T125: 1.574588791 | U125: 533.9016286 | V125: 32.90628879 | W125: 0.0001066166148 | X125: 0.001819236124 | Y125: 563.3035162 | Z125: 33.01248981
M126: 178 | N126: 1.146485002 | O126: =PSatVlVvfLfVPREOS_TcinK_PcinPa_w_TinC_alpha($H$5,$I$5*1000000,$K$5,M126,N126) -> 1642531.571 | P126: 0.0001135836768 | Q126: 0.001739834199 | R126: 1323949.994 | S126: 1323949.994 | T126: 1.642531571 | U126: 528.7512757 | V126: 34.5191019 | W126: 0.0001077123148 | X126: 0.001733962837 | Y126: 557.5733297 | Z126: 34.63598684
M127: 180 | N127: 1.141034119 | O127: =PSatVlVvfLfVPREOS_TcinK_PcinPa_w_TinC_alpha($H$5,$I$5*1000000,$K$5,M127,N127) -> 1712725.856 | P127: 0.0001147274285 | Q127: 0.001658550352 | R127: 1371799.102 | S127: 1371799.102 | T127: 1.712725856 | U127: 523.4799978 | V127: 36.21084758 | W127: 0.0001088560665 | X127: 0.00165267899 | Y127: 551.7149016 | Z127: 36.33949144
M128: 182 | N128: 1.135608198 | O128: =PSatVlVvfLfVPREOS_TcinK_PcinPa_w_TinC_alpha($H$5,$I$5*1000000,$K$5,M128,N128) -> 1785224.098 | P128: 0.000115922779 | Q128: 0.001581025665 | R128: 1420666.334 | S128: 1420666.334 | T128: 1.785224098 | U128: 518.082076 | V128: 37.98642572 | W128: 0.000110051417 | X128: 0.001575154303 | Y128: 545.7223145 | Z128: 38.1280195
M129: 184 | N129: 1.130207074 | O129: =PSatVlVvfLfVPREOS_TcinK_PcinPa_w_TinC_alpha($H$5,$I$5*1000000,$K$5,M129,N129) -> 1860079.576 | P129: 0.0001171736641 | Q129: 0.001507044019 | R129: 1470548.178 | S129: 1470548.178 | T129: 1.860079576 | U129: 512.5513012 | V129: 39.85120091 | W129: 0.0001113023021 | X129: 0.001501172657 | Y129: 539.5891447 | Z129: 40.00706628
M130: 186 | N130: 1.124830585 | O130: =PSatVlVvfLfVPREOS_TcinK_PcinPa_w_TinC_alpha($H$5,$I$5*1000000,$K$5,M130,N130) -> 1937346.413 | P130: 0.0001184844663 | Q130: 0.001436402349 | R130: 1521440.282 | S130: 1521440.282 | T130: 1.937346413 | U130: 506.8809092 | V130: 41.8110664 | W130: 0.0001126131043 | X130: 0.001430530987 | Y130: 533.3083958 | Z130: 41.98267255
M131: 188 | N131: 1.119478569 | O131: =PSatVlVvfLfVPREOS_TcinK_PcinPa_w_TinC_alpha($H$5,$I$5*1000000,$K$5,M131,N131) -> 2017079.601 | P131: 0.0001198600846 | Q131: 0.001368909613 | R131: 1573337.453 | S131: 1573337.453 | T131: 2.017079601 | U131: 501.0635041 | V131: 43.87251973 | W131: 0.0001139887226 | X131: 0.001363038251 | Y131: 526.8724188 | Z131: 44.06150302
M132: 190 | N132: =(1+$M$8*(1-((M132+273.15)/$H$5)^0.5))^2 -> 1.114150868 | O132: =PSatVlVvfLfVPREOS_TcinK_PcinPa_w_TinC_alpha($H$5,$I$5*1000000,$K$5,M132,N132) -> 2099335.017 | P132: 0.0001213060185 | Q132: 0.001304385823 | R132: 1626233.648 | S132: 1626233.648 | T132: 2.099335017 | U132: 495.0909669 | V132: 46.0427528 | W132: =P132-$M$9 -> 0.0001154346565 | X132: =Q132-$M$9 -> 0.001298514461 | Y132: 520.2728176 | Z132: 46.25093967
M133: 192 | N133: 1.108847325 | O133: =PSatVlVvfLfVPREOS_TcinK_PcinPa_w_TinC_alpha($H$5,$I$5*1000000,$K$5,M133,N133) -> 2184169.449 | P133: 0.0001228284701 | Q133: 0.001242661127 | R133: 1680121.979 | S133: 1680121.979 | T133: 2.184169449 | U133: 488.9543436 | V133: 48.32976 | W133: 0.0001169571082 | X133: 0.001236789765 | Y133: 513.5003331 | Z133: 48.55919391
M134: 194 | N134: 1.103567784 | O134: =PSatVlVvfLfVPREOS_TcinK_PcinPa_w_TinC_alpha($H$5,$I$5*1000000,$K$5,M134,N134) -> 2271640.62 | P134: 0.0001244344717 | Q134: 0.001183574927 | R134: 1734994.707 | S134: 1734994.707 | T134: 2.27164062 | U134: 482.6437013 | V134: 50.74246895 | W134: 0.0001185631097 | X134: 0.001177703565 | Y134: 506.5446929 | Z134: 50.99544212
M135: 196 | N135: 1.098312091 | O135: =PSatVlVvfLfVPREOS_TcinK_PcinPa_w_TinC_alpha($H$5,$I$5*1000000,$K$5,M135,N135) -> 2361807.209 | P135: 0.0001261320077 | Q135: 0.00112697503 | R135: 1790843.243 | S135: 1790843.243 | T135: 2.361807209 | U135: 476.1480856 | V135: 53.29090035 | W135: 0.0001202606457 | X135: 0.001121103668 | Y135: 499.3945745 | Z135: 53.56999155
M136: 198 | N136: 1.093080093 | O136: =PSatVlVvfLfVPREOS_TcinK_PcinPa_w_TinC_alpha($H$5,$I$5*1000000,$K$5,M136,N136) -> 2454728.882 | P136: 0.0001279302779 | Q136: 0.001072716822 | R136: 1847658.148 | S136: 1847658.148 | T136: 2.454728882 | U136: 469.455042 | V136: 55.98636355 | W136: 0.0001220589159 | X136: 0.00106684546 | Y136: 492.0370916 | Z136: 56.29448334
M137: 200 | N137: 1.08787164 | O137: =PSatVlVvfLfVPREOS_TcinK_PcinPa_w_TinC_alpha($H$5,$I$5*1000000,$K$5,M137,N137) -> 2550466.317 | P137: 0.0001298398577 | Q137: 0.001020662426 | R137: 1905429.134 | S137: 1905429.134 | T137: 2.550466317 | U137: 462.5506763 | V137: 58.84170169 | W137: 0.0001239684957 | X137: 0.001014791064 | Y137: 484.457875 | Z137: 59.18214707
M138: 202 | N138: 1.082686583 | O138: =PSatVlVvfLfVPREOS_TcinK_PcinPa_w_TinC_alpha($H$5,$I$5*1000000,$K$5,M138,N138) -> 2649081.231 | P138: 0.0001318730435 | Q138: 0.0009706798483 | R138: 1964145.066 | S138: 1964145.066 | T138: 2.649081231 | U138: 455.4191851 | V138: 61.87159866 | W138: 0.0001260016815 | X138: 0.0009648084863 | Y138: 476.6405757 | Z138: 62.24811955
M139: 204 | N139: 1.077524773 | O139: =PSatVlVvfLfVPREOS_TcinK_PcinPa_w_TinC_alpha($H$5,$I$5*1000000,$K$5,M139,N139) -> 2750636.415 | P139: 0.0001340442358 | Q139: 0.0009226420818 | R139: 2023793.964 | S139: 2023793.964 | T139: 2.750636415 | U139: 448.0424961 | V139: 65.0929707 | W139: 0.0001281728738 | X139: 0.0009167707198 | Y139: 468.5664931 | Z139: 65.50985181
M140: 206 | N140: 1.072386066 | O140: =PSatVlVvfLfVPREOS_TcinK_PcinPa_w_TinC_alpha($H$5,$I$5*1000000,$K$5,M140,N140) -> 2855195.761 | P140: 0.000136370451 | Q140: 0.0008764261211 | R140: 2084363.005 | S140: 2084363.005 | T140: 2.855195761 | U140: 440.3997607 | V140: 68.52547243 | W140: 0.000130499089 | X140: 0.0008705547591 | Y140: 460.2140478 | Z140: 68.98763504
M141: 208 | N141: 1.067270317 | O141: =PSatVlVvfLfVPREOS_TcinK_PcinPa_w_TinC_alpha($H$5,$I$5*1000000,$K$5,M141,N141) -> 2962824.297 | P141: 0.0001388720001 | Q141: 0.0008319118468 | R141: 2145838.525 | S141: 2145838.525 | T141: 2.962824297 | U141: 432.4666886 | V141: 72.19216102 | W141: 0.0001330006381 | X141: 0.0008260404848 | Y141: 451.5580893 | Z141: 72.70529121
M142: 210 | N142: 1.062177382 | O142: =PSatVlVvfLfVPREOS_TcinK_PcinPa_w_TinC_alpha($H$5,$I$5*1000000,$K$5,M142,N142) -> 3073588.224 | P142: 0.0001415734059 | Q142: 0.0007889807033 | R142: 2208206.028 | S142: 2208206.028 | T142: 3.073588224 | U142: 424.2146582 | V142: 76.12038386 | W142: 0.0001357020439 | X142: 0.0007831093414 | Y142: 442.5689715 | Z142: 76.69109641
M143: 212 | N143: 1.057107121 | O143: =PSatVlVvfLfVPREOS_TcinK_PcinPa_w_TinC_alpha($H$5,$I$5*1000000,$K$5,M143,N143) -> 3187554.949 | P143: 0.0001445046694 | Q143: 0.0007475140581 | R143: 2271450.185 | S143: 2271450.185 | T143: 3.187554949 | U143: 415.6095043 | V143: 80.34298934 | W143: 0.0001386333074 | X143: 0.0007416426961 | Y143: 433.2112905 | Z143: 80.9790406
M144: 214 | N144: 1.052059392 | O144: =PSatVlVvfLfVPREOS_TcinK_PcinPa_w_TinC_alpha($H$5,$I$5*1000000,$K$5,M144,N144) -> 3304793.127 | P144: 0.0001477030583 | Q144: 0.0007073910654 | R144: 2335554.842 | S144: 2335554.842 | T144: 3.304793127 | U144: 406.6098202 | V144: 84.90001773 | W144: 0.0001418316964 | X144: 0.0007015197035 | Y144: 423.4421187 | Z144: 85.61058756
M145: 216 | N145: 1.047034058 | O145: =PSatVlVvfLfVPREOS_TcinK_PcinPa_w_TinC_alpha($H$5,$I$5*1000000,$K$5,M145,N145) -> 3425372.697 | P145: 0.0001512157196 | Q145: 0.0006684857538 | R145: 2400503.025 | S145: 2400503.025 | T145: 3.425372697 | U145: 397.1644891 | V145: 89.84112773 | W145: 0.0001453443576 | X145: 0.0006626143919 | Y145: 413.2084314 | Z145: 90.63720127
M146: 218 | N146: 1.042030981 | O146: =PSatVlVvfLfVPREOS_TcinK_PcinPa_w_TinC_alpha($H$5,$I$5*1000000,$K$5,M146,N146) -> 3549364.929 | P146: 0.0001551034636 | Q146: 0.0006306627859 | R146: 2466276.945 | S146: 2466276.945 | T146: 3.549364929 | U146: 387.2093672 | V146: 95.22920226 | W146: 0.0001492321016 | X146: 0.0006247914239 | Y146: 402.4436656 | Z146: 96.1241011
M147: 220 | N147: 1.037050026 | O147: =PSatVlVvfLfVPREOS_TcinK_PcinPa_w_TinC_alpha($H$5,$I$5*1000000,$K$5,M147,N147) -> 3676842.465 | P147: 0.0001594470845 | Q147: 0.0005937711987 | R147: 2532858.006 | S147: 2532858.006 | T147: 3.676842465 | U147: 376.6610984 | V147: 101.145886 | W147: 0.0001535757226 | X147: 0.0005878998367 | Y147: 391.0612498 | Z147: 102.1560311
M148: 222 | N148: 1.032091057 | O148: =PSatVlVvfLfVPREOS_TcinK_PcinPa_w_TinC_alpha($H$5,$I$5*1000000,$K$5,M148,N148) -> 3807879.37 | P148: 0.0001643570546 | Q148: 0.0005576340923 | R148: 2600226.809 | S148: 2600226.808 | T148: 3.80787937 | U148: 365.4087994 | V148: 107.7005779 | W148: 0.0001584856926 | X148: 0.0005517627303 | Y148: 378.9459668 | Z148: 108.8466304
M149: 224 | N149: 1.027153943 | O149: =PSatVlVvfLfVPREOS_TcinK_PcinPa_w_TinC_alpha($H$5,$I$5*1000000,$K$5,M149,N149) -> 3942551.175 | P149: 0.0001699909544 | Q149: 0.0005220311421 | R149: 2668363.161 | S149: 2668363.161 | T149: 3.942551175 | U149: 353.298293 | V149: 115.0458453 | W149: 0.0001641195924 | X149: 0.0005161597802 | Y149: 365.937504 | Z149: 116.3545017
M150: 226 | N150: 1.02223855 | O150: =PSatVlVvfLfVPREOS_TcinK_PcinPa_w_TinC_alpha($H$5,$I$5*1000000,$K$5,M150,N150) -> 4080934.932 | P150: 0.0001765859718 | Q150: 0.0004866658363 | R150: 2737246.084 | S150: 2737246.084 | T150: 4.080934932 | U150: 340.1035393 | V150: 123.4060612 | W150: 0.0001707146098 | X150: 0.0004807944743 | Y150: 351.8006693 | Z150: 124.9130704
M151: 228 | N151: 1.017344749 | O151: =PSatVlVvfLfVPREOS_TcinK_PcinPa_w_TinC_alpha($H$5,$I$5*1000000,$K$5,M151,N151) -> 4223109.267 | P151: 0.0001845269166 | Q151: 0.0004510972833 | R151: 2806853.82 | S151: 2806853.82 | T151: 4.223109267 | U151: 325.4674988 | V151: 133.1365012 | W151: 0.0001786555546 | X151: 0.0004452259213 | Y151: 336.1637098 | Z151: 134.8922224
M152: 230 | N152: 1.012472411 | O152: =PSatVlVvfLfVPREOS_TcinK_PcinPa_w_TinC_alpha($H$5,$I$5*1000000,$K$5,M152,N152) -> 4369154.438 | P152: 0.0001945118807 | Q152: 0.0004145741934 | R152: 2877163.837 | S152: 2877163.837 | T152: 4.369154438 | U152: 308.7601322 | V152: 144.865539 | W152: 0.0001886405187 | X152: 0.0004087028315 | Y152: 318.37017 | Z152: 146.9466551
M153: 232 | N153: 1.007621408 | O153: =PSatVlVvfLfVPREOS_TcinK_PcinPa_w_TinC_alpha($H$5,$I$5*1000000,$K$5,M153,N153) -> 4519152.395 | P153: 0.0002080710727 | Q153: 0.0003755161901 | R153: 2948152.844 | S153: 2948152.844 | T153: 4.519152395 | U153: 288.6394212 | V153: 159.9332215 | W153: 0.0002021997107 | X153: 0.0003696448281 | Y153: 297.0207712 | Z153: 162.4735677
M154: 234 | N154: 1.002791613 | O154: =PSatVlVvfLfVPREOS_TcinK_PcinPa_w_TinC_alpha($H$5,$I$5*1000000,$K$5,M154,N154) -> 4673186.839 | P154: 0.0002303072024 | Q154: 0.0003287729249 | R154: 3019796.792 | S154: 3019796.792 | T154: 4.673186839 | U154: 260.7713236 | V154: 182.6717149 | W154: 0.0002244358404 | X154: 0.0003229015629 | Y154: 267.5932413 | Z154: 185.9932589
M155: 234.1 | N155: 1.002550678 | O155: =PSatVlVvfLfVPREOS_TcinK_PcinPa_w_TinC_alpha($H$5,$I$5*1000000,$K$5,M155,N155) -> 4680996.045 | P155: 0.0002319590103 | Q155: 0.0003259209724 | R155: 3023395.74 | S155: 3023395.74 | T155: 4.680996045 | U155: 258.9143398 | V155: 184.2701731 | W155: 0.0002260876483 | X155: 0.0003200496104 | Y155: 265.6381914 | Z155: 187.6506393
M156: 234.2 | N156: 1.002309795 | O156: =PSatVlVvfLfVPREOS_TcinK_PcinPa_w_TinC_alpha($H$5,$I$5*1000000,$K$5,M156,N156) -> 4688815.566 | P156: 0.0002337124937 | Q156: 0.0003229697049 | R156: 3026996.26 | S156: 3026996.26 | T156: 4.688815566 | U156: 256.9717735 | V156: 185.954017 | W156: 0.0002278411317 | X156: 0.0003170983429 | Y156: 263.5938189 | Z156: 189.3971235
M157: 234.3 | N157: 1.002068965 | O157: =PSatVlVvfLfVPREOS_TcinK_PcinPa_w_TinC_alpha($H$5,$I$5*1000000,$K$5,M157,N157) -> 4696645.414 | P157: 0.0002355845313 | Q157: 0.0003199022382 | R157: 3030598.35 | S157: 3030598.35 | T157: 4.696645414 | U157: 254.9297853 | V157: 187.737086 | W157: 0.0002297131693 | X157: 0.0003140308762 | Y157: 261.4456723 | Z157: 191.2471625
M158: 234.4 | N158: 1.001828188 | O158: =PSatVlVvfLfVPREOS_TcinK_PcinPa_w_TinC_alpha($H$5,$I$5*1000000,$K$5,M158,N158) -> 4704485.599 | P158: 0.0002375971705 | Q158: 0.00031669652 | R158: 3034202.005 | S158: 3034202.005 | T158: 4.704485599 | U158: 252.770325 | V158: 189.6374296 | W158: 0.0002317258085 | X158: 0.000310825158 | Y158: 259.1749032 | Z158: 193.2196042
M159: 234.5 | N159: 1.001587463 | O159: =PSatVlVvfLfVPREOS_TcinK_PcinPa_w_TinC_alpha($H$5,$I$5*1000000,$K$5,M159,N159) -> 4712336.132 | P159: 0.000239780149 | Q159: 0.0003133228101 | R159: 3037807.224 | S159: 3037807.224 | T159: 4.712336132 | U159: 250.4690828 | V159: 191.6793545 | W159: 0.000233908787 | X159: 0.0003074514481 | Y159: 256.756126 | Z159: 195.3398313
M160: 234.6 | N160: 1.001346791 | O160: =PSatVlVvfLfVPREOS_TcinK_PcinPa_w_TinC_alpha($H$5,$I$5*1000000,$K$5,M160,N160) -> 4720197.023 | P160: 0.0002421752665 | Q160: 0.0003097393277 | R160: 3041414.002 | S160: 3041414.002 | T160: 4.720197023 | U160: 247.9919394 | V160: 193.8969599 | W160: 0.0002363039045 | X160: 0.0003038679657 | Y160: 254.15371 | Z160: 197.643453
M161: 234.7 | N161: 1.001106172 | O161: =PSatVlVvfLfVPREOS_TcinK_PcinPa_w_TinC_alpha($H$5,$I$5*1000000,$K$5,M161,N161) -> 4728068.285 | P161: 0.0002448446332 | Q161: 0.0003058841529 | R161: 3045022.337 | S161: 3045022.337 | T161: 4.728068285 | U161: 245.2882598 | V161: 196.3407173 | W161: 0.0002389732712 | X161: 0.0003000127909 | Y161: 251.3147755 | Z161: 200.1831783
M162: 234.8 | N162: 1.000865605 | O162: =PSatVlVvfLfVPREOS_TcinK_PcinPa_w_TinC_alpha($H$5,$I$5*1000000,$K$5,M162,N162) -> 4735949.926 | P162: 0.0002478884075 | Q162: 0.0003016587946 | R162: 3048632.225 | S162: 3048632.225 | T162: 4.735949926 | U162: 242.2764122 | V162: 199.0908771 | W162: 0.0002420170455 | X162: 0.0002957874326 | Y162: 248.1540665 | Z162: 203.0428185
M163: 234.9 | N163: 1.000625091 | O163: =PSatVlVvfLfVPREOS_TcinK_PcinPa_w_TinC_alpha($H$5,$I$5*1000000,$K$5,M163,N163) -> 4743841.934 | P163: 0.0002514814529 | Q163: 0.0002968821306 | R163: 3052243.659 | S163: 3052243.658 | T163: 4.743841934 | U163: 238.814884 | V163: 202.2941357 | W163: 0.0002456100909 | X163: 0.0002910107686 | Y163: 244.5238051 | Z163: 206.3755726
M164: 235 | N164: =(1+$M$8*(1-((M164+273.15)/$H$5)^0.5))^2 -> 1.000384629 | O164: =PSatVlVvfLfVPREOS_TcinK_PcinPa_w_TinC_alpha($H$5,$I$5*1000000,$K$5,M164,N164) -> 4751744.389 | P164: 0.000256016295 | Q164: 0.0002911680556 | R164: 3055856.648 | S164: 3055856.648 | T164: 4.751744389 | U164: 234.5847322 | V164: 206.2640899 | W164: =P164-$M$9 -> 0.000250144933 | X164: =Q164-$M$9 -> 0.0002852966936 | Y164: 240.0908676 | Z164: 210.5089731
M165: 235.02 | N165: 1.000336543 | O165: =PSatVlVvfLfVPREOS_TcinK_PcinPa_w_TinC_alpha($H$5,$I$5*1000000,$K$5,M165,N165) -> 4753326.128 | P165: 0.0002571108306 | Q165: 0.0002898379974 | R165: 3056579.431 | S165: 3056579.431 | T165: =O165/1000000 -> 4.753326128 | U165: =1/P165*$F$5/1000 -> 233.5860914 | V165: =1/Q165*$F$5/1000 -> 207.2106299 | W165: 0.0002512394687 | X165: 0.0002839666354 | Y165: =1/W165*$F$5/1000 -> 239.0449014 | Z165: =1/X165*$F$5/1000 -> 211.4949664
M166: 235.04 | N166: 1.000288459 | O166: =PSatVlVvfLfVPREOS_TcinK_PcinPa_w_TinC_alpha($H$5,$I$5*1000000,$K$5,M166,N166) -> 4754908.282 | P166: 0.0002583013237 | Q166: 0.0002884122302 | R166: 3057302.275 | S166: 3057302.275 | T166: 4.754908282 | U166: 232.5095092 | V166: 208.2349766 | W166: 0.0002524299617 | X166: 0.0002825408682 | Y166: 237.917534 | Z166: 212.5622193
M167: 235.06 | N167: 1.000240378 | O167: =PSatVlVvfLfVPREOS_TcinK_PcinPa_w_TinC_alpha($H$5,$I$5*1000000,$K$5,M167,N167) -> 4756490.853 | P167: 0.0002596156736 | Q167: 0.00028686348 | R167: 3058025.181 | S167: 3058025.181 | T167: 4.756490853 | U167: 231.332389 | V167: 209.3592185 | W167: 0.0002537443116 | X167: 0.000280992118 | Y167: 236.6851639 | Z167: 213.733803
M168: 235.08 | N168: 1.000192298 | O168: =PSatVlVvfLfVPREOS_TcinK_PcinPa_w_TinC_alpha($H$5,$I$5*1000000,$K$5,M168,N168) -> 4758073.84 | P168: 0.0002610996055 | Q168: 0.0002851493959 | R168: 3058748.149 | S168: 3058748.149 | T168: 4.75807384 | U168: 230.0176359 | V168: 210.6177143 | W168: 0.0002552282435 | X168: 0.0002792780339 | Y168: 235.3090441 | Z168: 215.0456059
M169: 235.1 | N169: 1.00014422 | O169: =PSatVlVvfLfVPREOS_TcinK_PcinPa_w_TinC_alpha($H$5,$I$5*1000000,$K$5,M169,N169) -> 4759657.244 | P169: 0.0002628236797 | Q169: 0.0002831837992 | R169: 3059471.178 | S169: 3059471.178 | T169: 4.759657244 | U169: 228.5087632 | V169: 212.0796252 | W169: 0.0002569523177 | X169: 0.0002773124372 | Y169: 233.7301898 | Z169: 216.5698539
M170: 235.12 | N170: 1.000096145 | O170: =PSatVlVvfLfVPREOS_TcinK_PcinPa_w_TinC_alpha($H$5,$I$5*1000000,$K$5,M170,N170) -> 4761241.065 | P170: 0.0002649671688 | Q170: 0.0002808052795 | R170: 3060194.269 | S170: 3060194.269 | T170: 4.761241065 | U170: 226.6602095 | V170: 213.8760144 | W170: 0.0002590958068 | X170: 0.0002749339175 | Y170: 231.7965495 | Z170: 218.4434519
M171: 235.14 | N171: 1.000048071 | O171: =PSatVlVvfLfVPREOS_TcinK_PcinPa_w_TinC_alpha($H$5,$I$5*1000000,$K$5,M171,N171) -> 4762825.302 | P171: 0.0002681145754 | Q171: 0.0002774592752 | R171: 3060917.422 | S171: 3060917.422 | T171: 4.762825302 | U171: 223.9994372 | V171: 216.45524 | W171: 0.0002622432134 | X171: 0.0002715879132 | Y171: 229.0145595 | Z171: 221.1347084
M172: 235.16 | N172: 1 | O172: =PSatVlVvfLfVPREOS_TcinK_PcinPa_w_TinC_alpha($H$5,$I$5*1000000,$K$5,M172,N172) -> 4764000 | P172: 0.0002726909872 | Q172: 0.0002726909872 | R172: 3061640.653 | S172: 3061640.653 | T172: 4.764 | U172: 220.2401869 | V172: 220.2401869 | W172: 0.0002668196252 | X172: 0.0002668196252 | Y172: 225.086569 | Z172: 225.086569
